fUSD/lending_fUSD_20250702
["ID","MTS","AMOUNT","RATE_DAILY","PERIOD"]
[369039646,1751442632725,-300.0,0.00016419,2]
[369039649,1751442632734,-165.02830242,0.00016419,2]
[369039652,1751442632743,-6912.642,0.00016419,2]
[369039655,1751442632753,-207.4,0.00016419,2]
[369039657,1751442632762,-247.50259792,0.00016419,2]
[369039660,1751442632772,-300.79,0.00016425,2]
[369039663,1751442632781,-304.18,0.00016425,2]
[369039666,1751442632790,-303.78,0.00016425,2]
[369039669,1751442632799,-305.94,0.00016425,2]
[369039674,1751442632813,-301.15,0.00016425,2]
[369039676,1751442632823,-302.37,0.00016425,2]
[369039678,1751442632832,-301.79,0.00016425,2]
[369039680,1751442632842,-305.4,0.00016425,2]
[369039682,1751442632851,-300.22,0.00016425,2]
[369039684,1751442632861,-301.33,0.00016425,2]
[369039686,1751442632870,-303.98,0.00016425,2]
[369039688,1751442632879,-300.63,0.00016425,2]
[369039690,1751442632888,-301.6,0.00016425,2]
[369039692,1751442632898,-305.19,0.00016425,2]
[369039694,1751442632907,-301.34,0.00016426,2]
[369039696,1751442632917,-302.77,0.00016426,2]
[369039698,1751442632926,-301.37,0.00016426,2]
[369039700,1751442632935,-305.58,0.00016426,2]
[369039702,1751442632945,-304.99,0.00016426,2]
[369039704,1751442632954,-302.63,0.00016426,2]
[369039706,1751442632963,-302.83,0.00016426,2]
[369039708,1751442632973,-302.62,0.00016426,2]
[369039710,1751442632982,-303.52,0.00016426,2]
[369039712,1751442632991,-305.35,0.00016426,2]
[369039714,1751442633001,-302.37,0.00016426,2]
[369039716,1751442633012,-304.01,0.00016426,2]
[369039718,1751442633021,-303.1,0.00016426,2]
[369039720,1751442633031,-305.68,0.00016427,2]
[369039721,1751442633040,-303.68,0.00016427,2]
[369039723,1751442633049,-303.89,0.00016427,2]
[369039725,1751442633059,-302.98,0.00016427,2]
[369039727,1751442633069,-302.7,0.00016427,2]
[369039729,1751442633079,-302.18,0.00016427,2]
[369039732,1751442633089,-303.36,0.00016427,2]
[369039734,1751442633099,-302.62,0.00016427,2]
[369039735,1751442633108,-302.06,0.00016427,2]
[369039738,1751442633118,-302.67,0.00016427,2]
[369039739,1751442633128,-302.25,0.00016427,2]
[369039741,1751442633138,-303.75,0.00016427,2]
[369039743,1751442633147,-302.77,0.00016427,2]
[369039745,1751442633157,-1797.35,0.00016428,2]
[369039747,1751442633166,-305.6,0.00016428,2]
[369039749,1751442633176,-304.75,0.00016428,2]
[369039751,1751442633186,-305.76,0.00016428,2]
[369039753,1751442633195,-303.15,0.00016428,2]
[369039755,1751442633205,-304.39,0.00016428,2]
[369039757,1751442633215,-302.14,0.00016428,2]
[369039759,1751442633224,-373.62847358,0.00016437,2]
[369039761,1751442633234,-471.45345281,0.00016437,2]
[369039764,1751442633246,-57.10469759,0.00016437,2]
[369039765,1751442633255,-307.63449766,0.00016437,2]
[369039961,1751442636882,157.38734727,0.00016338,2]
[369039962,1751442638119,-173.64,0.00016428,2]
[369039963,1751442638128,-1497.79,0.00016428,2]
[369039964,1751442638138,-71.45352701,0.00016437,2]
[369039965,1751442638147,-494.95488246,0.00016437,2]
[369039966,1751442638157,-500.0,0.00016437,2]
[369039967,1751442638166,-198.83067577,0.00016437,2]
[369039968,1751442638180,-500.0,0.00016437,2]
[369039969,1751442638189,-500.0,0.00016437,2]
[369039970,1751442638198,-500.0,0.00016437,2]
[369039971,1751442638208,-381.66073067,0.00016437,2]
[369039972,1751442638218,-216.1283124,0.00016437,2]
[369039973,1751442638227,-500.0,0.00016437,2]
[369039974,1751442638236,-500.0,0.00016437,2]
[369039975,1751442638246,-500.0,0.00016437,2]
[369039976,1751442638255,-427.18592349,0.00016437,2]
[369039977,1751442638265,-500.0,0.00016437,2]
[369039978,1751442638274,-500.0,0.00016437,2]
[369039979,1751442638285,-269.825,0.00016437,2]
[369039980,1751442638295,-301.95,0.00016437,2]
[369039981,1751442638304,-303.85,0.00016437,2]
[369039982,1751442638314,-302.3,0.00016437,2]
[369039983,1751442638324,-303.21,0.00016437,2]
[369039984,1751442638333,-490.0,0.00016438,2]
[369039985,1751442638342,-490.0,0.00016438,2]
[369039986,1751442638352,-490.0,0.00016438,2]
[369039987,1751442638362,-490.0,0.00016438,2]
[369039988,1751442638371,-490.0,0.00016438,2]
[369039989,1751442638381,-516.08,0.00016438,2]
[369039990,1751442638390,-490.0,0.00016438,2]
[369039991,1751442638400,-490.0,0.00016438,2]
[369039992,1751442638409,-490.0,0.00016438,2]
[369039993,1751442638418,-1087.15,0.00016438,2]
[369039994,1751442638428,-490.0,0.00016438,2]
[369039995,1751442638437,-490.0,0.00016438,2]
[369039996,1751442638447,-490.0,0.00016438,2]
[369039997,1751442638456,-490.0,0.00016438,2]
[369039998,1751442638466,-489.52155318,0.00016438,2]
[369039999,1751442638476,-1105.50352,0.00016438,2]
[369040000,1751442638485,-154.882695,0.00016438,2]
[369040001,1751442638495,-151.766736,0.00016438,2]
[369040002,1751442638504,-1190.044027,0.00016438,2]
[369040004,1751442638515,-1242.769266,0.00016438,2]
[369040005,1751442638524,-546.54765397,0.00016438,2]
[369040007,1751442638533,-490.0,0.00016438,2]
[369040009,1751442638542,-490.0,0.00016438,2]
[369040011,1751442638552,-490.0,0.00016438,2]
[369040013,1751442638561,-490.0,0.00016438,2]
[369040015,1751442638571,-490.0,0.00016438,2]
[369040018,1751442638580,-490.0,0.00016438,2]
[369040019,1751442638593,-490.0,0.00016438,2]
[369040022,1751442638603,-490.0,0.00016438,2]
[369040024,1751442638612,-514.48935115,0.00016438,2]
[369040026,1751442638623,-490.0,0.00016438,2]
[369040027,1751442638633,-501.51216175,0.00016438,2]
[369040030,1751442638642,-490.0,0.00016438,2]
[369040031,1751442638652,-500.0,0.00016438,2]
[369040033,1751442638662,-490.0,0.00016438,2]
[369040035,1751442638672,-500.0,0.00016438,2]
[369040037,1751442638681,-490.0,0.00016438,2]
[369040039,1751442638690,-490.0,0.00016438,2]
[369040041,1751442638699,-490.0,0.00016438,2]
[369040043,1751442638709,-490.0,0.00016438,2]
[369040046,1751442638719,-490.0,0.00016438,2]
[369040048,1751442638729,-490.0,0.00016438,2]
[369040050,1751442638738,-490.0,0.00016438,2]
[369040052,1751442638748,-490.0,0.00016438,2]
[369040054,1751442638758,-490.0,0.00016438,2]
[369040056,1751442638767,-490.0,0.00016438,2]
[369040058,1751442638777,-490.0,0.00016438,2]
[369040060,1751442638786,-490.0,0.00016438,2]
[369040062,1751442638795,-597.21,0.00016438,2]
[369040064,1751442638805,-490.0,0.00016438,2]
[369040066,1751442638814,-490.0,0.00016438,2]
[369040068,1751442638823,-490.0,0.00016438,2]
[369040070,1751442638832,-490.0,0.00016438,2]
[369040072,1751442638842,-490.0,0.00016438,2]
[369040074,1751442638851,-490.0,0.00016438,2]
[369040076,1751442638860,-490.0,0.00016438,2]
[369040078,1751442638869,-490.0,0.00016438,2]
[369040080,1751442638878,-490.0,0.00016438,2]
[369040082,1751442638887,-490.0,0.00016438,2]
[369040084,1751442638896,-490.0,0.00016438,2]
[369040086,1751442638906,-19.34406669,0.00016438,2]
[369040144,1751442639600,-480.65593331,0.00016438,2]
[369040146,1751442639612,-490.0,0.00016438,2]
[369040149,1751442639621,-490.0,0.00016438,2]
[369040151,1751442639632,-490.0,0.00016438,2]
[369040153,1751442639641,-490.0,0.00016438,2]
[369040155,1751442639651,-490.0,0.00016438,2]
[369040157,1751442639661,-156.18413397,0.00016438,2]
[369040159,1751442639672,-490.0,0.00016438,2]
[369040161,1751442639681,-208.04030356,0.00016438,2]
[369040162,1751442639698,-281.95969644,0.00016438,2]
[369040164,1751442639707,-490.0,0.00016438,2]
[369040166,1751442639716,-490.0,0.00016438,2]
[369040168,1751442639727,-490.0,0.00016438,2]
[369040170,1751442639736,-490.0,0.00016438,2]
[369040172,1751442639745,-490.0,0.00016438,2]
[369040174,1751442639755,-490.0,0.00016438,2]
[369040176,1751442639764,-490.0,0.00016438,2]
[369040177,1751442639774,-490.0,0.00016438,2]
[369040180,1751442639783,-490.0,0.00016438,2]
[369040182,1751442639792,-490.0,0.00016438,2]
[369040184,1751442639802,-490.0,0.00016438,2]
[369040186,1751442639811,-490.0,0.00016438,2]
[369040188,1751442639821,-490.0,0.00016438,2]
[369040190,1751442639831,-490.0,0.00016438,2]
[369040192,1751442639841,-490.0,0.00016438,2]
[369040194,1751442639850,-497.04774434,0.00016438,2]
[369040196,1751442639859,-490.0,0.00016438,2]
[369040198,1751442639869,-490.0,0.00016438,2]
[369040200,1751442639879,-490.0,0.00016438,2]
[369040202,1751442639888,-490.0,0.00016438,2]
[369040203,1751442639897,-490.0,0.00016438,2]
[369040205,1751442639908,-490.0,0.00016438,2]
[369040207,1751442639917,-490.0,0.00016438,2]
[369040209,1751442639927,-490.0,0.00016438,2]
[369040211,1751442639937,-490.0,0.00016438,2]
[369040213,1751442639946,-635.03,0.00016438,2]
[369040215,1751442639956,-490.0,0.00016438,2]
[369040217,1751442639965,-490.0,0.00016438,2]
[369040219,1751442639975,-490.0,0.00016438,2]
[369040221,1751442639983,-490.0,0.00016438,2]
[369040223,1751442639993,-490.0,0.00016438,2]
[369040225,1751442640003,-490.0,0.00016438,2]
[369040227,1751442640012,-490.0,0.00016438,2]
[369040229,1751442640022,-355.96730054,0.00016438,2]
[369040231,1751442640035,-134.03269946,0.00016438,2]
[369040233,1751442640046,-185.15663231,0.00016438,2]
[369040235,1751442640057,-304.84336769,0.00016438,2]
[369040237,1751442640067,-492.06023797,0.00016438,2]
[369040239,1751442640076,-490.0,0.00016438,2]
[369040241,1751442640086,-490.0,0.00016438,2]
[369040243,1751442640096,-490.0,0.00016438,2]
[369040245,1751442640106,-490.0,0.00016438,2]
[369040247,1751442640115,-490.0,0.00016438,2]
[369040249,1751442640124,-490.0,0.00016438,2]
[369040251,1751442640134,-490.0,0.00016438,2]
[369040253,1751442640143,-490.0,0.00016438,2]
[369040255,1751442640152,-490.0,0.00016438,2]
[369040257,1751442640163,-332.58781108,0.00016438,2]
[369040260,1751442640198,-652.77218892,0.00016438,2]
[369040261,1751442640208,-490.0,0.00016438,2]
[369040262,1751442640217,-490.0,0.00016438,2]
[369040263,1751442640227,-490.0,0.00016438,2]
[369040265,1751442640236,-490.0,0.00016438,2]
[369040267,1751442640246,-490.0,0.00016438,2]
[369040268,1751442640255,-57.72080631,0.00016438,2]
[369040269,1751442640267,-432.27919369,0.00016438,2]
[369040270,1751442640276,-490.0,0.00016438,2]
[369040271,1751442640286,-490.0,0.00016438,2]
[369040272,1751442640295,-276.6663942,0.00016438,2]
[369040273,1751442640305,-490.0,0.00016438,2]
[369040274,1751442640314,-490.0,0.00016438,2]
[369040275,1751442640323,-490.0,0.00016438,2]
[369040276,1751442640332,-490.0,0.00016438,2]
[369040277,1751442640342,-490.0,0.00016438,2]
[369040278,1751442640351,-103.57505992,0.00016438,2]
[369040279,1751442640378,-552.37494008,0.00016438,2]
[369040280,1751442640388,-491.53489723,0.00016438,2]
[369040281,1751442640398,-490.0,0.00016438,2]
[369040282,1751442640408,-490.0,0.00016438,2]
[369040283,1751442640418,-493.15834581,0.00016438,2]
[369040284,1751442640427,-718.72,0.00016438,2]
[369040285,1751442640436,-490.0,0.00016438,2]
[369040286,1751442640446,-479.04153419,0.00016438,2]
[369040291,1751442641000,-10.95846581,0.00016438,2]
[369040292,1751442641010,-490.0,0.00016438,2]
[369040293,1751442641019,-553.77,0.00016438,2]
[369040294,1751442641028,-490.0,0.00016438,2]
[369040295,1751442641038,-490.0,0.00016438,2]
[369040296,1751442641047,-490.0,0.00016438,2]
[369040297,1751442641056,-34.39635635,0.00016438,2]
[369040298,1751442641068,-455.60364365,0.00016438,2]
[369040299,1751442641078,-490.0,0.00016438,2]
[369040300,1751442641087,-459.77745135,0.00016438,2]
[369040301,1751442641100,-30.22254865,0.00016438,2]
[369040302,1751442641109,-490.0,0.00016438,2]
[369040303,1751442641118,-490.0,0.00016438,2]
[369040304,1751442641128,-270.727116,0.00016438,2]
[369040305,1751442641147,-219.272884,0.00016438,2]
[369040306,1751442641156,-482.68498792,0.00016438,2]
[369040307,1751442641168,-7.31501208,0.00016438,2]
[369040308,1751442641177,-528.93498792,0.00016438,2]
[369040309,1751442641210,-1390.28501208,0.00016438,2]
[369040310,1751442641219,-510.12783177,0.00016438,2]
[369040311,1751442641229,-490.0,0.00016438,2]
[369040312,1751442641238,-490.0,0.00016438,2]
[369040313,1751442641247,-537.2,0.00016438,2]
[369040314,1751442641256,-490.0,0.00016438,2]
[369040315,1751442641265,-490.0,0.00016438,2]
[369040316,1751442641275,-490.0,0.00016438,2]
[369040317,1751442641284,-490.0,0.00016438,2]
[369040318,1751442641294,-490.0,0.00016438,2]
[369040319,1751442641303,-490.0,0.00016438,2]
[369040320,1751442641312,-500.0,0.00016438,2]
[369040321,1751442641322,-500.0,0.00016438,2]
[369040322,1751442641331,-490.0,0.00016438,2]
[369040323,1751442641341,-490.0,0.00016438,2]
[369040324,1751442641353,-490.0,0.00016438,2]
[369040325,1751442641362,-490.0,0.00016438,2]
[369040326,1751442641372,-490.0,0.00016438,2]
[369040327,1751442641383,-490.0,0.00016438,2]
[369040328,1751442641392,-490.0,0.00016438,2]
[369040329,1751442641402,-1530.13,0.00016438,2]
[369040330,1751442641416,-500.13251357,0.00016438,2]
[369040331,1751442641426,-490.0,0.00016438,2]
[369040332,1751442641435,-646.35,0.00016438,2]
[369040333,1751442641446,-490.0,0.00016438,2]
[369040334,1751442641456,-490.0,0.00016438,2]
[369040335,1751442641465,-490.0,0.00016438,2]
[369040336,1751442641475,-490.0,0.00016438,2]
[369040337,1751442641484,-490.0,0.00016438,2]
[369040338,1751442641493,-490.0,0.00016438,2]
[369040339,1751442641503,-490.0,0.00016438,2]
[369040340,1751442641512,-490.0,0.00016438,2]
[369040341,1751442641522,-490.0,0.00016438,2]
[369040342,1751442641535,-560.27,0.00016438,2]
[369040343,1751442641556,-597.42,0.00016438,2]
[369040344,1751442641573,-490.0,0.00016438,2]
[369040345,1751442641595,-490.81764319,0.00016438,2]
[369040346,1751442641614,-490.0,0.00016438,2]
[369040347,1751442641630,-490.0,0.00016438,2]
[369040348,1751442641650,-490.0,0.00016438,2]
[369040349,1751442641670,-500.0,0.00016438,2]
[369040350,1751442641689,-500.0,0.00016438,2]
[369040351,1751442641706,-490.0,0.00016438,2]
[369040352,1751442641725,-490.0,0.00016438,2]
[369040353,1751442641742,-649.92,0.00016438,2]
[369040354,1751442641757,-649.92,0.00016438,2]
[369040355,1751442641776,-490.0,0.00016438,2]
[369040356,1751442641790,-490.0,0.00016438,2]
[369040357,1751442641808,-490.0,0.00016438,2]
[369040358,1751442641820,-563.18,0.00016438,2]
[369040359,1751442641840,-490.0,0.00016438,2]
[369040360,1751442641855,-490.0,0.00016438,2]
[369040361,1751442641870,-490.0,0.00016438,2]
[369040362,1751442641885,-218.09034144,0.00016438,2]
[369040363,1751442641899,-490.0,0.00016438,2]
[369040364,1751442641914,-832.69,0.00016438,2]
[369040365,1751442641929,-490.0,0.00016438,2]
[369040366,1751442641945,-490.0,0.00016438,2]
[369040367,1751442641959,-995.43,0.00016438,2]
[369040368,1751442641974,-490.0,0.00016438,2]
[369040369,1751442641989,-490.0,0.00016438,2]
[369040370,1751442642004,-490.0,0.00016438,2]
[369040371,1751442642019,-182.86935129,0.00016438,2]
[369040372,1751442642034,-490.0,0.00016438,2]
[369040373,1751442642049,-490.0,0.00016438,2]
[369040374,1751442642063,-490.0,0.00016438,2]
[369040375,1751442642078,-150.965429,0.00016438,2]
[369040376,1751442642092,-490.0,0.00016438,2]
[369040377,1751442642107,-842.89,0.00016438,2]
[369040378,1751442642121,-490.0,0.00016438,2]
[369040379,1751442642136,-1187.9,0.00016438,2]
[369040380,1751442642151,-490.0,0.00016438,2]
[369040381,1751442642165,-500.0,0.00016438,2]
[369040382,1751442642180,-490.0,0.00016438,2]
[369040383,1751442642195,-581.64,0.00016438,2]
[369040384,1751442642209,-490.0,0.00016438,2]
[369040385,1751442642225,-490.0,0.00016438,2]
[369040386,1751442642239,-490.0,0.00016438,2]
[369040387,1751442642253,-490.0,0.00016438,2]
[369040388,1751442642269,-796.4,0.00016438,2]
[369040389,1751442642284,-200.58136339,0.00016438,2]
[369040390,1751442642299,-490.0,0.00016438,2]
[369040391,1751442642315,-490.0,0.00016438,2]
[369040392,1751442642332,-490.0,0.00016438,2]
[369040393,1751442642346,-490.0,0.00016438,2]
[369040394,1751442642361,-490.0,0.00016438,2]
[369040395,1751442642375,-616.64,0.00016438,2]
[369040396,1751442642390,-490.0,0.00016438,2]
[369040397,1751442642405,-490.0,0.00016438,2]
[369040398,1751442642420,-490.0,0.00016438,2]
[369040399,1751442642435,-490.0,0.00016438,2]
[369040400,1751442642451,-490.0,0.00016438,2]
[369040401,1751442642465,-490.0,0.00016438,2]
[369040402,1751442642481,-490.0,0.00016438,2]
[369040403,1751442642495,-490.0,0.00016438,2]
[369040404,1751442642510,-491.57453093,0.00016438,2]
[369040405,1751442642525,-490.0,0.00016438,2]
[369040406,1751442642540,-1279.84,0.00016438,2]
[369040407,1751442642555,-490.0,0.00016438,2]
[369040408,1751442642570,-490.0,0.00016438,2]
[369040409,1751442642586,-490.0,0.00016438,2]
[369040410,1751442642601,-510.0,0.00016438,2]
[369040411,1751442642616,-490.0,0.00016438,2]
[369040412,1751442642632,-537.77,0.00016438,2]
[369040413,1751442642648,-490.0,0.00016438,2]
[369040414,1751442642665,-490.0,0.00016438,2]
[369040415,1751442642681,-490.0,0.00016438,2]
[369040416,1751442642697,-490.0,0.00016438,2]
[369040417,1751442642711,-490.0,0.00016438,2]
[369040418,1751442642727,-697.53,0.00016438,2]
[369040419,1751442642743,-490.0,0.00016438,2]
[369040420,1751442642759,-626.65693424,0.00016438,2]
[369040421,1751442642774,-490.0,0.00016438,2]
[369040422,1751442642789,-490.0,0.00016438,2]
[369040423,1751442642804,-490.0,0.00016438,2]
[369040424,1751442642818,-648.67,0.00016438,2]
[369040425,1751442642835,-512.68343284,0.00016438,2]
[369040426,1751442642852,-490.0,0.00016438,2]
[369040427,1751442642868,-490.0,0.00016438,2]
[369040428,1751442642884,-632.1883599,0.00016438,2]
[369040429,1751442642901,-490.0,0.00016438,2]
[369040430,1751442642918,-722.65,0.00016438,2]
[369040431,1751442642929,-490.0,0.00016438,2]
[369040432,1751442642939,-490.0,0.00016438,2]
[369040433,1751442642949,-490.0,0.00016438,2]
[369040434,1751442642959,-490.0,0.00016438,2]
[369040436,1751442642968,-1932.0,0.00016438,2]
[369040437,1751442642978,-490.0,0.00016438,2]
[369040438,1751442642988,-1025.24,0.00016438,2]
[369040439,1751442642998,-529.54,0.00016438,2]
[369040440,1751442643007,-490.0,0.00016438,2]
[369040445,1751442643298,-490.0,0.00016438,2]
[369040446,1751442643332,-490.0,0.00016438,2]
[369040447,1751442643351,-650.74,0.00016438,2]
[369040448,1751442643360,-545.00133028,0.00016438,2]
[369040449,1751442643370,-490.0,0.00016438,2]
[369040450,1751442643379,-490.0,0.00016438,2]
[369040451,1751442643389,-490.0,0.00016438,2]
[369040452,1751442643399,-884.02,0.00016438,2]
[369040453,1751442643408,-524.37,0.00016438,2]
[369040454,1751442643419,-490.0,0.00016438,2]
[369040455,1751442643428,-490.0,0.00016438,2]
[369040456,1751442643438,-676.51,0.00016438,2]
[369040457,1751442643448,-429.86587943,0.00016438,2]
[369040458,1751442643458,-490.0,0.00016438,2]
[369040459,1751442643467,-490.0,0.00016438,2]
[369040460,1751442643477,-490.0,0.00016438,2]
[369040461,1751442643486,-490.0,0.00016438,2]
[369040462,1751442643496,-490.0,0.00016438,2]
[369040463,1751442643506,-490.0,0.00016438,2]
[369040464,1751442643515,-490.0,0.00016438,2]
[369040465,1751442643525,-720.78,0.00016438,2]
[369040466,1751442643534,-495.16388879,0.00016438,2]
[369040467,1751442643543,-500.0,0.00016438,2]
[369040468,1751442643552,-500.0,0.00016438,2]
[369040469,1751442643562,-490.0,0.00016438,2]
[369040470,1751442643571,-490.0,0.00016438,2]
[369040471,1751442643581,-746.43,0.00016438,2]
[369040472,1751442643595,-490.74,0.00016438,2]
[369040473,1751442643605,-490.0,0.00016438,2]
[369040474,1751442643614,-490.0,0.00016438,2]
[369040475,1751442643624,-255.80387034,0.00016438,2]
[369040476,1751442643634,-490.0,0.00016438,2]
[369040477,1751442643643,-490.0,0.00016438,2]
[369040478,1751442643652,-490.0,0.00016438,2]
[369040479,1751442643662,-490.0,0.00016438,2]
[369040480,1751442643673,-490.0,0.00016438,2]
[369040481,1751442643683,-490.0,0.00016438,2]
[369040482,1751442643693,-840.96,0.00016438,2]
[369040483,1751442643703,-490.0,0.00016438,2]
[369040484,1751442643712,-490.0,0.00016438,2]
[369040485,1751442643721,-490.0,0.00016438,2]
[369040486,1751442643731,-491.89591564,0.00016438,2]
[369040487,1751442643740,-579.23,0.00016438,2]
[369040488,1751442643750,-490.0,0.00016438,2]
[369040489,1751442643759,-490.0,0.00016438,2]
[369040490,1751442643769,-490.0,0.00016438,2]
[369040491,1751442643778,-490.0,0.00016438,2]
[369040492,1751442643787,-490.0,0.00016438,2]
[369040493,1751442643797,-490.0,0.00016438,2]
[369040494,1751442643806,-490.0,0.00016438,2]
[369040495,1751442643815,-490.0,0.00016438,2]
[369040496,1751442643825,-490.0,0.00016438,2]
[369040497,1751442643834,-490.0,0.00016438,2]
[369040498,1751442643846,-629.22,0.00016438,2]
[369040499,1751442643856,-490.0,0.00016438,2]
[369040500,1751442643865,-1194.11,0.00016438,2]
[369040501,1751442643874,-490.0,0.00016438,2]
[369040502,1751442643884,-492.81390287,0.00016438,2]
[369040503,1751442643893,-586.31,0.00016438,2]
[369040504,1751442643902,-490.0,0.00016438,2]
[369040505,1751442643911,-490.0,0.00016438,2]
[369040506,1751442643921,-490.0,0.00016438,2]
[369040507,1751442643930,-490.0,0.00016438,2]
[369040508,1751442643939,-490.0,0.00016438,2]
[369040509,1751442643948,-566.63,0.00016438,2]
[369040510,1751442643958,-490.0,0.00016438,2]
[369040511,1751442643967,-491.61422182,0.00016438,2]
[369040512,1751442643977,-596.41962714,0.00016438,2]
[369040513,1751442643986,-490.0,0.00016438,2]
[369040514,1751442643995,-490.0,0.00016438,2]
[369040515,1751442644004,-490.0,0.00016438,2]
[369040516,1751442644013,-490.0,0.00016438,2]
[369040517,1751442644022,-490.0,0.00016438,2]
[369040518,1751442644031,-500.0,0.00016438,2]
[369040519,1751442644041,-500.0,0.00016438,2]
[369040520,1751442644050,-490.0,0.00016438,2]
[369040521,1751442644059,-490.0,0.00016438,2]
[369040522,1751442644068,-491.85140557,0.00016438,2]
[369040523,1751442644077,-609.25,0.00016438,2]
[369040524,1751442644087,-490.0,0.00016438,2]
[369040525,1751442644096,-490.0,0.00016438,2]
[369040526,1751442644105,-490.0,0.00016438,2]
[369040527,1751442644114,-490.0,0.00016438,2]
[369040528,1751442644123,-946.86,0.00016438,2]
[369040529,1751442644132,-490.0,0.00016438,2]
[369040530,1751442644141,-514.24,0.00016438,2]
[369040531,1751442644151,-490.0,0.00016438,2]
[369040532,1751442644160,-490.0,0.00016438,2]
[369040533,1751442644170,-490.0,0.00016438,2]
[369040534,1751442644179,-490.0,0.00016438,2]
[369040535,1751442644189,-490.0,0.00016438,2]
[369040536,1751442644198,-490.0,0.00016438,2]
[369040537,1751442644207,-490.0,0.00016438,2]
[369040538,1751442644216,-490.0,0.00016438,2]
[369040539,1751442644225,-389.33220379,0.00016438,2]
[369040540,1751442644236,-496.80134305,0.00016438,2]
[369040541,1751442644246,-628.73,0.00016438,2]
[369040542,1751442644255,-490.0,0.00016438,2]
[369040543,1751442644264,-490.0,0.00016438,2]
[369040544,1751442644274,-494.3197788,0.00016438,2]
[369040545,1751442644284,-490.0,0.00016438,2]
[369040546,1751442644293,-490.0,0.00016438,2]
[369040547,1751442644302,-490.0,0.00016438,2]
[369040548,1751442644312,-415.27465207,0.00016438,2]
[369040549,1751442644321,-490.0,0.00016438,2]
[369040550,1751442644330,-490.0,0.00016438,2]
[369040551,1751442644340,-490.0,0.00016438,2]
[369040552,1751442644349,-490.0,0.00016438,2]
[369040553,1751442644359,-490.0,0.00016438,2]
[369040554,1751442644368,-888.52,0.00016438,2]
[369040555,1751442644377,-490.0,0.00016438,2]
[369040556,1751442644387,-490.0,0.00016438,2]
[369040557,1751442644397,-1380.27,0.00016438,2]
[369040558,1751442644407,-490.0,0.00016438,2]
[369040559,1751442644416,-409.21815412,0.00016438,2]
[369040560,1751442644426,-1542.4,0.00016438,2]
[369040561,1751442644435,-490.0,0.00016438,2]
[369040562,1751442644445,-490.0,0.00016438,2]
[369040563,1751442644454,-304.48378776,0.00016438,2]
[369040564,1751442644463,-499.84,0.00016438,2]
[369040565,1751442644473,-490.0,0.00016438,2]
[369040566,1751442644482,-490.0,0.00016438,2]
[369040567,1751442644492,-490.0,0.00016438,2]
[369040568,1751442644502,-490.0,0.00016438,2]
[369040569,1751442644511,-490.0,0.00016438,2]
[369040570,1751442644520,-1037.72,0.00016438,2]
[369040571,1751442644530,-425.49035528,0.00016438,2]
[369040572,1751442644539,-321.18452723,0.00016438,2]